[Event "Late Titled Tuesday Blitz February 8 2022"]
[White "Li, Hui"]
[Black "Jarocka, Liwia"]
[WhiteFideId "15400310"]
[BlackFideId "21807558"]
[WhiteElo "1954"]
[BlackElo "1896"]
[Result "1-0"]
[Round "08"]
[TimeControl "180+1"]
[Date "2022.02.09"]
[WhiteClock "0:00:03"]
[BlackClock "0:00:06"]

1. e4 {[%clk 0:02:51]}  g6 {[%clk 0:03:00]} 2. d4 {[%clk 0:02:50]}  Bg7 {[%clk 0:03:00]} 3. Nc3 {[%clk 0:02:51]}  d6 {[%clk 0:03:01]} 4. Nf3 {[%clk 0:02:51]}  Nf6 {[%clk 0:03:01]} 5. Be2 {[%clk 0:02:51]}  O-O {[%clk 0:03:01]} 6. O-O {[%clk 0:02:51]}  Bg4 {[%clk 0:03:01]} 7. Be3 {[%clk 0:02:50]}  Nc6 {[%clk 0:03:00]} 8. Qd2 {[%clk 0:02:40]}  e5 {[%clk 0:02:59]} 9. d5 {[%clk 0:02:39]}  Ne7 {[%clk 0:02:59]} 10. Rad1 {[%clk 0:02:28]}  Nd7 {[%clk 0:02:59]} 11. Ne1 {[%clk 0:02:18]}  Bxe2 {[%clk 0:02:58]} 12. Nxe2 {[%clk 0:02:05]}  f5 {[%clk 0:02:59]} 13. f3 {[%clk 0:02:04]}  a5 {[%clk 0:02:57]} 14. Nd3 {[%clk 0:02:02]}  b6 {[%clk 0:02:55]} 15. c4 {[%clk 0:02:02]}  f4 {[%clk 0:02:52]} 16. Bf2 {[%clk 0:02:01]}  g5 {[%clk 0:02:53]} 17. a3 {[%clk 0:01:48]}  a4 {[%clk 0:02:49]} 18. Qc2 {[%clk 0:01:41]}  h5 {[%clk 0:02:47]} 19. Nc3 {[%clk 0:01:39]}  g4 {[%clk 0:02:44]} 20. Kh1 {[%clk 0:01:38]}  Ng6 {[%clk 0:02:43]} 21. Nxa4 {[%clk 0:01:33]}  h4 {[%clk 0:02:43]} 22. h3 {[%clk 0:01:30]}  gxf3 {[%clk 0:02:36]} 23. gxf3 {[%clk 0:01:30]}  Nf6 {[%clk 0:02:35]} 24. Rg1 {[%clk 0:01:26]}  Qe8 {[%clk 0:02:33]} 25. Nc3 {[%clk 0:01:24]}  Nh5 {[%clk 0:02:32]} 26. Ne2 {[%clk 0:01:15]}  Ng3+ {[%clk 0:02:32]} 27. Kh2 {[%clk 0:00:39]}  Rf6 {[%clk 0:02:31]} 28. Rg2 {[%clk 0:00:33]}  Nf8 {[%clk 0:02:31]} 29. Be1 {[%clk 0:00:31]}  Nh7 {[%clk 0:02:29]} 30. Nf2 {[%clk 0:00:28]}  Ng5 {[%clk 0:02:24]} 31. Ng1 {[%clk 0:00:27]}  Nf1+ {[%clk 0:02:08]} 32. Kh1 {[%clk 0:00:27]}  Ne3 {[%clk 0:02:08]} 33. Qe2 {[%clk 0:00:27]}  Nxg2 {[%clk 0:02:07]} 34. Kxg2 {[%clk 0:00:26]}  Rg6 {[%clk 0:02:08]} 35. Ng4 {[%clk 0:00:26]}  Qd7 {[%clk 0:02:03]} 36. Kh2 {[%clk 0:00:23]}  Kf7 {[%clk 0:01:54]} 37. Bxh4 {[%clk 0:00:19]}  Rh8 {[%clk 0:01:48]} 38. Bxg5 {[%clk 0:00:19]}  Rxg5 {[%clk 0:01:48]} 39. Kg2 {[%clk 0:00:12]}  Bf6 {[%clk 0:01:47]} 40. Kf1 {[%clk 0:00:11]}  Rgh5 {[%clk 0:01:45]} 41. Qg2 {[%clk 0:00:11]}  Bh4 {[%clk 0:01:43]} 42. Qe2 {[%clk 0:00:11]}  Bg3 {[%clk 0:01:43]} 43. Qg2 {[%clk 0:00:11]}  b5 {[%clk 0:01:41]} 44. Qe2 {[%clk 0:00:07]}  Rb8 {[%clk 0:01:19]} 45. b4 {[%clk 0:00:06]}  Ra8 {[%clk 0:01:10]} 46. Rd3 {[%clk 0:00:06]}  bxc4 {[%clk 0:01:09]} 47. Rc3 {[%clk 0:00:06]}  Ra7 {[%clk 0:00:58]} 48. Qxc4 {[%clk 0:00:05]}  Qa4 {[%clk 0:00:57]} 49. Qd3 {[%clk 0:00:04]}  Rh8 {[%clk 0:00:54]} 50. Qe2 {[%clk 0:00:03]}  Rb8 {[%clk 0:00:44]} 51. Qb2 {[%clk 0:00:02]}  Qb5+ {[%clk 0:00:44]} 52. Qe2 {[%clk 0:00:02]}  Qb6 {[%clk 0:00:43]} 53. Qc2 {[%clk 0:00:02]}  Rbb7 {[%clk 0:00:42]} 54. Qe2 {[%clk 0:00:02]}  Qd4 {[%clk 0:00:42]} 55. Qc2 {[%clk 0:00:01]}  Kg6 {[%clk 0:00:37]} 56. Ne2 {[%clk 0:00:01]}  Qb6 {[%clk 0:00:35]} 57. Nxg3 {[%clk 0:00:01]}  fxg3 {[%clk 0:00:35]} 58. f4 {[%clk 0:00:02]}  exf4 {[%clk 0:00:30]} 59. e5+ {[%clk 0:00:02]}  Kg5 {[%clk 0:00:29]} 60. e6 {[%clk 0:00:02]}  Qb5+ {[%clk 0:00:24]} 61. Qe2 {[%clk 0:00:02]}  Qxe2+ {[%clk 0:00:22]} 62. Kxe2 {[%clk 0:00:03]}  c5 {[%clk 0:00:21]} 63. dxc6 {[%clk 0:00:03]}  Re7 {[%clk 0:00:20]} 64. b5 {[%clk 0:00:03]}  Rxe6+ {[%clk 0:00:20]} 65. Kf3 {[%clk 0:00:03]}  Rae7 {[%clk 0:00:18]} 66. b6 {[%clk 0:00:03]}  Re1 {[%clk 0:00:17]} 67. c7 {[%clk 0:00:02]}  Rf1+ {[%clk 0:00:17]} 68. Kg2 {[%clk 0:00:02]}  Rb1 {[%clk 0:00:04]} 69. c8=Q {[%clk 0:00:02]}  Rb2+ {[%clk 0:00:05]} 70. Kf1 {[%clk 0:00:01]}  Rb1+ {[%clk 0:00:04]} 71. Rc1 {[%clk 0:00:01]}  Rxc1+ {[%clk 0:00:03]} 72. Qxc1 {[%clk 0:00:02]}  Rb7 {[%clk 0:00:02]} 73. Qc6 {[%clk 0:00:02]}  Rxb6 {[%clk 0:00:03]} 74. Qxb6 {[%clk 0:00:03]}  f3 {[%clk 0:00:04]} 75. Qxd6 {[%clk 0:00:03]}  g2+ {[%clk 0:00:05]} 76. Kg1 {[%clk 0:00:03]}  Kh4 {[%clk 0:00:05]} 77. Qh2 {[%clk 0:00:03]}  f2+ {[%clk 0:00:06]} 1-0


[Site "https://www.chess.com"]

[Event "Late Titled Tuesday Blitz February 8 2022"]
[White "Lopez Del Alamo, Antonio"]
[Black "Novikova, Galina"]
[WhiteFideId "2227339"]
[BlackFideId "4157095"]
[WhiteElo "2082"]
[BlackElo "1863"]
[Result "1-0"]
[Round "08"]
[TimeControl "180+1"]
[Date "2022.02.09"]
[WhiteClock "0:00:06"]
[BlackClock "0:00:01"]

1. e4 {[%clk 0:03:00]}  e6 {[%clk 0:03:00]} 2. d3 {[%clk 0:03:00]}  d5 {[%clk 0:03:01]} 3. Nd2 {[%clk 0:02:59]}  Nf6 {[%clk 0:03:01]} 4. Ngf3 {[%clk 0:02:58]}  g6 {[%clk 0:03:01]} 5. g3 {[%clk 0:02:57]}  Bg7 {[%clk 0:03:01]} 6. Bg2 {[%clk 0:02:57]}  O-O {[%clk 0:03:02]} 7. O-O {[%clk 0:02:57]}  c5 {[%clk 0:03:03]} 8. Re1 {[%clk 0:02:57]}  Nc6 {[%clk 0:03:03]} 9. exd5 {[%clk 0:02:56]}  exd5 {[%clk 0:03:02]} 10. a4 {[%clk 0:02:57]}  Bf5 {[%clk 0:02:54]} 11. Nf1 {[%clk 0:02:55]}  Qc8 {[%clk 0:02:51]} 12. c3 {[%clk 0:02:50]}  Bh3 {[%clk 0:02:51]} 13. Ne3 {[%clk 0:02:45]}  Bxg2 {[%clk 0:02:51]} 14. Nxg2 {[%clk 0:02:43]}  d4 {[%clk 0:02:37]} 15. c4 {[%clk 0:02:38]}  Qf5 {[%clk 0:02:31]} 16. Nfh4 {[%clk 0:02:17]}  Qh3 {[%clk 0:02:25]} 17. Nf4 {[%clk 0:02:14]}  Qd7 {[%clk 0:02:25]} 18. Nfg2 {[%clk 0:02:00]}  Nb4 {[%clk 0:02:15]} 19. Ra3 {[%clk 0:01:52]}  Rfe8 {[%clk 0:02:11]} 20. Bd2 {[%clk 0:01:50]}  Rxe1+ {[%clk 0:02:08]} 21. Bxe1 {[%clk 0:01:49]}  Nc6 {[%clk 0:01:57]} 22. a5 {[%clk 0:01:41]}  Re8 {[%clk 0:01:54]} 23. Rb3 {[%clk 0:01:37]}  Ne5 {[%clk 0:01:48]} 24. Nf3 {[%clk 0:01:32]}  Nfg4 {[%clk 0:01:42]} 25. Nxe5 {[%clk 0:01:16]}  Nxe5 {[%clk 0:01:37]} 26. Nf4 {[%clk 0:01:12]}  g5 {[%clk 0:01:22]} 27. Nd5 {[%clk 0:01:05]}  g4 {[%clk 0:01:21]} 28. Bd2 {[%clk 0:00:36]}  Nf3+ {[%clk 0:01:19]} 29. Kg2 {[%clk 0:00:35]}  Qf5 {[%clk 0:01:01]} 30. Nf4 {[%clk 0:00:29]}  Qd7 {[%clk 0:00:48]} 31. h3 {[%clk 0:00:26]}  Ne5 {[%clk 0:00:36]} 32. hxg4 {[%clk 0:00:23]}  Nxg4 {[%clk 0:00:37]} 33. Qf3 {[%clk 0:00:21]}  Ne5 {[%clk 0:00:35]} 34. Qd5 {[%clk 0:00:19]}  Qf5 {[%clk 0:00:35]} 35. Rxb7 {[%clk 0:00:17]}  Rf8 {[%clk 0:00:34]} 36. Re7 {[%clk 0:00:14]}  h5 {[%clk 0:00:26]} 37. Qe4 {[%clk 0:00:12]}  Qxe4+ {[%clk 0:00:16]} 38. dxe4 {[%clk 0:00:13]}  Nxc4 {[%clk 0:00:16]} 39. Be1 {[%clk 0:00:13]}  Nxb2 {[%clk 0:00:16]} 40. Rxa7 {[%clk 0:00:13]}  c4 {[%clk 0:00:16]} 41. Rc7 {[%clk 0:00:13]}  c3 {[%clk 0:00:16]} 42. a6 {[%clk 0:00:12]}  Ra8 {[%clk 0:00:15]} 43. a7 {[%clk 0:00:12]}  Kh7 {[%clk 0:00:11]} 44. Rb7 {[%clk 0:00:12]}  c2 {[%clk 0:00:08]} 45. Bd2 {[%clk 0:00:11]}  d3 {[%clk 0:00:07]} 46. Rxb2 {[%clk 0:00:10]}  Bxb2 {[%clk 0:00:06]} 47. Nxd3 {[%clk 0:00:11]}  Bf6 {[%clk 0:00:04]} 48. Be3 {[%clk 0:00:09]}  Be7 {[%clk 0:00:02]} 49. e5 {[%clk 0:00:08]}  Rd8 {[%clk 0:00:02]} 50. f4 {[%clk 0:00:07]}  Ba3 {[%clk 0:00:01]} 51. Kf3 {[%clk 0:00:06]} 1-0


[Site "https://www.chess.com"]

[Event "Late Titled Tuesday Blitz February 8 2022"]
[White "Michelakos, Panagiotis"]
[Black "Makarian, Rudik"]
[WhiteFideId "4216067"]
[BlackFideId "44105681"]
[WhiteElo "2140"]
[BlackElo "2486"]
[Result "1-0"]
[Round "08"]
[TimeControl "180+1"]
[Date "2022.02.08"]
[WhiteClock "0:00:14"]
[BlackClock "0:00:03"]

1. d4 {[%clk 0:03:00]}  Nf6 {[%clk 0:03:00]} 2. c4 {[%clk 0:03:00]}  g6 {[%clk 0:02:59]} 3. Nc3 {[%clk 0:03:00]}  Bg7 {[%clk 0:03:00]} 4. e4 {[%clk 0:03:00]}  d6 {[%clk 0:03:00]} 5. Be2 {[%clk 0:03:01]}  O-O {[%clk 0:03:01]} 6. Bg5 {[%clk 0:03:01]}  c5 {[%clk 0:02:59]} 7. d5 {[%clk 0:03:00]}  h6 {[%clk 0:02:59]} 8. Bf4 {[%clk 0:02:48]}  Ne8 {[%clk 0:02:50]} 9. Qd2 {[%clk 0:02:36]}  Kh7 {[%clk 0:02:50]} 10. Nf3 {[%clk 0:02:32]}  e5 {[%clk 0:02:45]} 11. dxe6 {[%clk 0:02:31]}  fxe6 {[%clk 0:02:37]} 12. Be3 {[%clk 0:02:25]}  Qe7 {[%clk 0:02:31]} 13. h4 {[%clk 0:02:24]}  Nc6 {[%clk 0:02:28]} 14. e5 {[%clk 0:02:03]}  Rxf3 {[%clk 0:02:16]} 15. gxf3 {[%clk 0:01:59]}  Nxe5 {[%clk 0:02:11]} 16. O-O-O {[%clk 0:01:48]}  b5 {[%clk 0:02:10]} 17. h5 {[%clk 0:01:43]}  g5 {[%clk 0:02:08]} 18. Nxb5 {[%clk 0:01:43]}  Rb8 {[%clk 0:02:01]} 19. Nxd6 {[%clk 0:01:30]}  Nxd6 {[%clk 0:00:51]} 20. Qxd6 {[%clk 0:01:31]}  Qb7 {[%clk 0:00:52]} 21. Rd2 {[%clk 0:01:21]}  Bd7 {[%clk 0:00:44]} 22. Bxc5 {[%clk 0:01:01]}  Rc8 {[%clk 0:00:29]} 23. b3 {[%clk 0:00:53]}  Bc6 {[%clk 0:00:15]} 24. Rhd1 {[%clk 0:00:44]}  Bxf3 {[%clk 0:00:13]} 25. Qxe6 {[%clk 0:00:38]}  Be4 {[%clk 0:00:06]} 26. Rd7 {[%clk 0:00:34]}  Nxd7 {[%clk 0:00:05]} 27. Rxd7 {[%clk 0:00:28]}  Qc6 {[%clk 0:00:06]} 28. Bd4 {[%clk 0:00:14]}  Qxe6 {[%clk 0:00:02]} 29. Rxg7+ {[%clk 0:00:14]}  Kh8 {[%clk 0:00:03]} 30. Re7+ {[%clk 0:00:14]} 1-0


[Site "https://www.chess.com"]

[Event "Late Titled Tuesday Blitz February 8 2022"]
[White "Mikhalsky, Vladimir"]
[Black "Chernomordik, Pavel"]
[WhiteFideId "14144352"]
[BlackFideId "2804530"]
[WhiteElo "2248"]
[BlackElo "2249"]
[Result "0-1"]
[Round "08"]
[TimeControl "180+1"]
[Date "2022.02.09"]
[WhiteClock "0:00:06"]
[BlackClock "0:00:16"]

1. c4 {[%clk 0:03:00]}  g6 {[%clk 0:02:58]} 2. Nc3 {[%clk 0:03:00]}  Bg7 {[%clk 0:02:58]} 3. d4 {[%clk 0:02:58]}  d6 {[%clk 0:02:58]} 4. e4 {[%clk 0:02:57]}  c6 {[%clk 0:02:58]} 5. f3 {[%clk 0:02:56]}  a6 {[%clk 0:02:57]} 6. a4 {[%clk 0:02:55]}  a5 {[%clk 0:02:57]} 7. Be3 {[%clk 0:02:55]}  Na6 {[%clk 0:02:57]} 8. Bd3 {[%clk 0:02:48]}  Nb4 {[%clk 0:02:55]} 9. Bb1 {[%clk 0:02:47]}  Nf6 {[%clk 0:02:52]} 10. Nge2 {[%clk 0:02:46]}  O-O {[%clk 0:02:51]} 11. Qd2 {[%clk 0:02:46]}  Nd7 {[%clk 0:02:45]} 12. Bh6 {[%clk 0:02:39]}  e5 {[%clk 0:02:44]} 13. h4 {[%clk 0:02:35]}  Bxh6 {[%clk 0:02:32]} 14. Qxh6 {[%clk 0:02:34]}  exd4 {[%clk 0:02:32]} 15. Nxd4 {[%clk 0:02:24]}  Qf6 {[%clk 0:02:29]} 16. Nce2 {[%clk 0:02:23]}  Qg7 {[%clk 0:02:21]} 17. Qxg7+ {[%clk 0:02:22]}  Kxg7 {[%clk 0:02:21]} 18. h5 {[%clk 0:02:21]}  Ne5 {[%clk 0:02:20]} 19. Ra3 {[%clk 0:02:19]}  Nxc4 {[%clk 0:02:18]} 20. h6+ {[%clk 0:02:11]}  Kg8 {[%clk 0:02:17]} 21. Rb3 {[%clk 0:02:11]}  Bd7 {[%clk 0:02:10]} 22. Kf2 {[%clk 0:01:59]}  Rfe8 {[%clk 0:02:00]} 23. Rd1 {[%clk 0:01:57]}  c5 {[%clk 0:01:51]} 24. Nb5 {[%clk 0:01:56]}  Bxb5 {[%clk 0:01:47]} 25. axb5 {[%clk 0:01:56]}  a4 {[%clk 0:01:47]} 26. Rc3 {[%clk 0:01:47]}  Nxb2 {[%clk 0:01:47]} 27. Rxd6 {[%clk 0:01:47]}  a3 {[%clk 0:01:46]} 28. Rxc5 {[%clk 0:01:35]}  a2 {[%clk 0:01:44]} 29. Bxa2 {[%clk 0:01:35]}  N2d3+ {[%clk 0:01:40]} 30. Ke3 {[%clk 0:01:28]}  Nxc5 {[%clk 0:01:37]} 31. Bc4 {[%clk 0:01:27]}  Rad8 {[%clk 0:01:31]} 32. Rf6 {[%clk 0:01:24]}  Re7 {[%clk 0:01:30]} 33. Nf4 {[%clk 0:01:23]}  Nc2+ {[%clk 0:01:25]} 34. Kf2 {[%clk 0:01:22]}  Nd4 {[%clk 0:01:17]} 35. Nd5 {[%clk 0:01:20]}  Red7 {[%clk 0:01:15]} 36. Nb6 {[%clk 0:01:15]}  Rd6 {[%clk 0:01:07]} 37. Rxf7 {[%clk 0:01:14]}  Nde6 {[%clk 0:01:07]} 38. Bxe6 {[%clk 0:00:55]}  Rxe6 {[%clk 0:01:00]} 39. Rg7+ {[%clk 0:00:54]}  Kf8 {[%clk 0:00:59]} 40. Nd5 {[%clk 0:00:54]}  Rd7 {[%clk 0:00:57]} 41. Nc7 {[%clk 0:00:40]}  Ree7 {[%clk 0:00:45]} 42. Rxe7 {[%clk 0:00:37]}  Kxe7 {[%clk 0:00:44]} 43. Nd5+ {[%clk 0:00:37]}  Ke6 {[%clk 0:00:44]} 44. Nf4+ {[%clk 0:00:34]}  Ke5 {[%clk 0:00:43]} 45. Kg3 {[%clk 0:00:33]}  Nd3 {[%clk 0:00:35]} 46. Ne2 {[%clk 0:00:31]}  Rd6 {[%clk 0:00:32]} 47. Nc3 {[%clk 0:00:19]}  g5 {[%clk 0:00:29]} 48. Kg4 {[%clk 0:00:19]}  Rxh6 {[%clk 0:00:27]} 49. g3 {[%clk 0:00:18]}  Rd6 {[%clk 0:00:20]} 50. Kxg5 {[%clk 0:00:16]}  Rg6+ {[%clk 0:00:20]} 51. Kh4 {[%clk 0:00:16]}  Kd4 {[%clk 0:00:19]} 52. Nd1 {[%clk 0:00:15]}  Ne1 {[%clk 0:00:18]} 53. f4 {[%clk 0:00:13]}  Kxe4 {[%clk 0:00:18]} 54. Nf2+ {[%clk 0:00:11]}  Kf3 {[%clk 0:00:18]} 55. Nh3 {[%clk 0:00:07]}  Rh6+ {[%clk 0:00:17]} 56. Kg5 {[%clk 0:00:07]}  Rxh3 {[%clk 0:00:17]} 57. f5 {[%clk 0:00:07]}  Rxg3+ {[%clk 0:00:17]} 58. Kf6 {[%clk 0:00:06]}  Ke4 {[%clk 0:00:16]} 59. Ke6 {[%clk 0:00:06]}  Rf3 {[%clk 0:00:16]} 60. f6 {[%clk 0:00:06]}  h5 {[%clk 0:00:16]} 0-1


[Site "https://www.chess.com"]

[Event "Late Titled Tuesday Blitz February 8 2022"]
[White "Musovic, Armin"]
[Black "Nikologorsky, Matfei"]
[WhiteFideId "939935"]
[BlackFideId "24102474"]
[WhiteElo "2250"]
[BlackElo "2231"]
[Result "1-0"]
[Round "08"]
[TimeControl "180+1"]
[Date "2022.02.09"]
[WhiteClock "0:00:50"]
[BlackClock "0:00:32"]

1. e4 {[%clk 0:03:00]}  c5 {[%clk 0:02:59]} 2. c3 {[%clk 0:03:01]}  d5 {[%clk 0:02:59]} 3. exd5 {[%clk 0:03:00]}  Qxd5 {[%clk 0:02:59]} 4. h3 {[%clk 0:03:01]}  Nf6 {[%clk 0:02:56]} 5. Na3 {[%clk 0:03:00]}  Nc6 {[%clk 0:02:52]} 6. Nf3 {[%clk 0:02:58]}  Qd8 {[%clk 0:02:43]} 7. Nc4 {[%clk 0:02:53]}  g6 {[%clk 0:02:37]} 8. g4 {[%clk 0:02:48]}  Bg7 {[%clk 0:02:36]} 9. Bg2 {[%clk 0:02:47]}  h5 {[%clk 0:02:29]} 10. g5 {[%clk 0:02:47]}  Nd5 {[%clk 0:02:30]} 11. d4 {[%clk 0:02:45]}  cxd4 {[%clk 0:02:29]} 12. cxd4 {[%clk 0:02:46]}  O-O {[%clk 0:02:17]} 13. O-O {[%clk 0:02:44]}  Be6 {[%clk 0:02:08]} 14. Re1 {[%clk 0:02:39]}  Rc8 {[%clk 0:01:58]} 15. Nce5 {[%clk 0:02:28]}  Nxe5 {[%clk 0:01:55]} 16. Nxe5 {[%clk 0:02:29]}  Qb6 {[%clk 0:01:40]} 17. Nd7 {[%clk 0:01:54]}  Bxd7 {[%clk 0:01:34]} 18. Bxd5 {[%clk 0:01:55]}  Bxh3 {[%clk 0:01:23]} 19. Bf4 {[%clk 0:01:39]}  Qxd4 {[%clk 0:01:16]} 20. Qxd4 {[%clk 0:01:37]}  Bxd4 {[%clk 0:01:17]} 21. Rxe7 {[%clk 0:01:35]}  Rc2 {[%clk 0:01:11]} 22. Bg3 {[%clk 0:01:29]}  Rxb2 {[%clk 0:01:02]} 23. Rd1 {[%clk 0:01:20]}  Bc5 {[%clk 0:00:59]} 24. Rc7 {[%clk 0:01:15]}  Bb6 {[%clk 0:00:56]} 25. Rxb7 {[%clk 0:01:13]}  Bc8 {[%clk 0:00:40]} 26. Re7 {[%clk 0:00:52]}  Bc5 {[%clk 0:00:34]} 27. Rc7 {[%clk 0:00:50]}  Bb6 {[%clk 0:00:34]} 28. Bxf7+ {[%clk 0:00:50]}  Rxf7 {[%clk 0:00:32]} 29. Rxc8+ {[%clk 0:00:50]}  Kg7 {[%clk 0:00:32]} 30. Be5+ {[%clk 0:00:50]} 1-0


[Site "https://www.chess.com"]

[Event "Late Titled Tuesday Blitz February 8 2022"]
[White "Mustafayev, Farid"]
[Black "Deac, Bogdan-Daniel"]
[WhiteFideId "13408771"]
[BlackFideId "1226380"]
[WhiteElo "2129"]
[BlackElo "2646"]
[Result "0-1"]
[Round "08"]
[TimeControl "180+1"]
[Date "2022.02.08"]
[WhiteClock "0:01:34"]
[BlackClock "0:01:59"]

1. Nf3 {[%clk 0:03:00]}  d5 {[%clk 0:03:00]} 2. g3 {[%clk 0:03:00]}  Nf6 {[%clk 0:02:59]} 3. Bg2 {[%clk 0:03:01]}  e6 {[%clk 0:03:00]} 4. O-O {[%clk 0:03:01]}  Be7 {[%clk 0:03:01]} 5. d3 {[%clk 0:03:02]}  Nc6 {[%clk 0:02:59]} 6. Nbd2 {[%clk 0:03:02]}  e5 {[%clk 0:02:57]} 7. e4 {[%clk 0:02:56]}  d4 {[%clk 0:02:57]} 8. Nc4 {[%clk 0:02:54]}  Nd7 {[%clk 0:02:57]} 9. a4 {[%clk 0:02:54]}  O-O {[%clk 0:02:56]} 10. Bd2 {[%clk 0:02:48]}  b6 {[%clk 0:02:50]} 11. c3 {[%clk 0:02:40]}  a5 {[%clk 0:02:30]} 12. Rc1 {[%clk 0:02:37]}  Bb7 {[%clk 0:02:26]} 13. Qb3 {[%clk 0:02:29]}  Nc5 {[%clk 0:02:24]} 14. Qc2 {[%clk 0:02:29]}  dxc3 {[%clk 0:02:23]} 15. Bxc3 {[%clk 0:02:27]}  Qxd3 {[%clk 0:02:22]} 16. Nfxe5 {[%clk 0:02:04]}  Nxe5 {[%clk 0:02:16]} 17. Nxe5 {[%clk 0:02:04]}  Qxc2 {[%clk 0:02:15]} 18. Rxc2 {[%clk 0:02:05]}  Nxa4 {[%clk 0:02:11]} 19. Bd4 {[%clk 0:01:50]}  Bc5 {[%clk 0:02:11]} 20. Bxc5 {[%clk 0:01:42]}  Nxc5 {[%clk 0:02:12]} 21. Re1 {[%clk 0:01:37]}  Rfe8 {[%clk 0:02:11]} 22. f4 {[%clk 0:01:37]}  f6 {[%clk 0:02:08]} 23. Nc4 {[%clk 0:01:33]}  Bxe4 {[%clk 0:02:00]} 24. Rce2 {[%clk 0:01:34]}  f5 {[%clk 0:02:00]} 25. Nd2 {[%clk 0:01:34]}  Rad8 {[%clk 0:01:59]} 26. Nxe4 {[%clk 0:01:34]}  fxe4 {[%clk 0:01:59]} 0-1


[Site "https://www.chess.com"]

[Event "Late Titled Tuesday Blitz February 8 2022"]
[White "Niemann, Hans Moke"]
[Black "Shoker, Samy"]
[WhiteFideId "2093596"]
[BlackFideId "627143"]
[WhiteElo "2636"]
[BlackElo "2493"]
[Result "1-0"]
[Round "08"]
[TimeControl "180+1"]
[Date "2022.02.08"]
[WhiteClock "0:01:46"]
[BlackClock "0:00:45"]

1. d4 {[%clk 0:03:00]}  Nf6 {[%clk 0:02:59]} 2. Nc3 {[%clk 0:03:01]}  d6 {[%clk 0:02:59]} 3. Bf4 {[%clk 0:03:01]}  c6 {[%clk 0:02:59]} 4. e3 {[%clk 0:02:58]}  g6 {[%clk 0:02:56]} 5. h4 {[%clk 0:02:57]}  h5 {[%clk 0:02:56]} 6. Be2 {[%clk 0:02:57]}  b5 {[%clk 0:02:55]} 7. Bf3 {[%clk 0:02:56]}  b4 {[%clk 0:02:49]} 8. Ne4 {[%clk 0:02:54]}  Nxe4 {[%clk 0:02:42]} 9. Bxe4 {[%clk 0:02:55]}  Bg7 {[%clk 0:02:38]} 10. Nf3 {[%clk 0:02:45]}  a5 {[%clk 0:02:32]} 11. Ng5 {[%clk 0:02:44]}  Ba6 {[%clk 0:02:20]} 12. Qf3 {[%clk 0:02:42]}  O-O {[%clk 0:02:15]} 13. g4 {[%clk 0:02:41]}  d5 {[%clk 0:02:14]} 14. Bd3 {[%clk 0:02:35]}  Bxd3 {[%clk 0:02:10]} 15. cxd3 {[%clk 0:02:36]}  hxg4 {[%clk 0:02:09]} 16. Qxg4 {[%clk 0:02:37]}  Qd7 {[%clk 0:02:09]} 17. Qg3 {[%clk 0:02:32]}  Qf5 {[%clk 0:02:04]} 18. h5 {[%clk 0:02:32]}  Nd7 {[%clk 0:01:59]} 19. e4 {[%clk 0:02:25]}  dxe4 {[%clk 0:01:57]} 20. dxe4 {[%clk 0:02:26]}  Qb5 {[%clk 0:01:43]} 21. hxg6 {[%clk 0:02:24]}  fxg6 {[%clk 0:01:43]} 22. Qh3 {[%clk 0:02:12]}  Rxf4 {[%clk 0:01:15]} 23. Qe6+ {[%clk 0:01:47]}  Kf8 {[%clk 0:01:15]} 24. Qxg6 {[%clk 0:01:47]}  Rf6 {[%clk 0:00:47]} 25. Rh8+ {[%clk 0:01:45]}  Bxh8 {[%clk 0:00:45]} 26. Nh7# {[%clk 0:01:46]} 1-0


[Site "https://www.chess.com"]